fUST/lending_fUST_20250707
["ID","MTS","AMOUNT","RATE_DAILY","PERIOD"]
[370053856,1751867441704,-150.0,0.000189,2]
[370053857,1751867441713,-460.0,0.00018939,2]
[370053858,1751867441723,-460.0,0.00018939,2]
[370053859,1751867441732,-460.0,0.00018939,2]
[370053860,1751867441741,-460.0,0.00018939,2]
[370053861,1751867441750,-460.0,0.0001894,2]
[370053862,1751867441760,-460.0,0.0001894,2]
[370053863,1751867441770,-549.32,0.0001894,2]
[370053864,1751867441780,-460.0,0.00018942,2]
[370053865,1751867441791,-460.0,0.00018942,2]
[370053866,1751867441801,-460.0,0.00018942,2]
[370053867,1751867441810,-1610.14419389,0.00019036,2]
[370053868,1751867441819,-1422.55225651,0.00019141,2]
[370053869,1751867441828,-437.209313,0.00019178,2]
[370053870,1751867441837,-666.0,0.00019178,2]
[370053871,1751867441846,-420.0,0.0001918,2]
[370053872,1751867441856,-460.0,0.00019213,2]
[370053873,1751867441865,-460.0,0.00019213,2]
[370053874,1751867441874,-460.0,0.00019213,2]
[370053875,1751867441883,-460.0,0.00019213,2]
[370053876,1751867441893,-460.0,0.00019214,2]
[370053877,1751867441901,-460.0,0.00019214,2]
[370053878,1751867441911,-549.32,0.00019214,2]
[370053879,1751867441920,-460.0,0.00019216,2]
[370053880,1751867441929,-460.0,0.00019216,2]
[370053881,1751867441938,-460.0,0.00019216,2]
[370053882,1751867441947,-1000.0,0.00019255,2]
[370053883,1751867441956,-500.0,0.00019255,2]
[370053884,1751867441965,-624.72787449,0.00019255,2]
[370053885,1751867441974,-504.04703047,0.00019255,2]
[370053886,1751867442090,-508.28685865,0.00019255,2]
[370053887,1751867442099,-1422.55225651,0.00019383,2]
[370053888,1751867442108,-460.0,0.00019487,2]
[370053889,1751867442118,-460.0,0.00019487,2]
[370053890,1751867442127,-460.0,0.00019487,2]
[370053891,1751867442136,-460.0,0.00019487,2]
[370053892,1751867442145,-460.0,0.00019488,2]
[370053893,1751867442155,-460.0,0.00019488,2]
[370053894,1751867442165,-549.32,0.00019488,2]
[370053895,1751867442174,-460.0,0.0001949,2]
[370053896,1751867442184,-460.0,0.0001949,2]
[370053897,1751867442193,-460.0,0.0001949,2]
[370053898,1751867442203,-1422.55225651,0.00019624,2]
[370053899,1751867442212,-460.0,0.00019761,2]
[370053900,1751867442221,-460.0,0.00019761,2]
[370053901,1751867442230,-460.0,0.00019761,2]
[370053902,1751867442240,-460.0,0.00019761,2]
[370053903,1751867442250,-460.0,0.00019762,2]
[370053904,1751867442259,-174.94220646,0.00019762,2]
[370053905,1751867442268,-549.32,0.00019762,2]
[370053906,1751867442281,-500.0,0.00019763,2]
[370053907,1751867442293,-180.73340416,0.00019763,2]
[370053908,1751867442302,-319.7745402,0.00019763,2]
[370053909,1751867442311,-432.44737938,0.00019763,2]
[370053910,1751867442322,-258.24251696,0.00019763,2]
[370053911,1751867442331,-460.0,0.00019764,2]
[370053912,1751867442341,-224.64346171,0.00019764,2]
[370053913,1751867442350,-460.0,0.00019764,2]
[370053914,1751867442361,-1500.0,0.00019803,2]
[370053915,1751867442370,-1422.55225651,0.00019866,2]
[370053916,1751867442379,-300.0,0.0002,2]
[370053917,1751867442388,-460.0,0.00020035,2]
[370053918,1751867442397,-524.77603349,0.00020035,2]
[370053919,1751867442406,-153.78,0.00020035,2]
[370053920,1751867442416,-460.0,0.00020035,2]
[370053921,1751867442425,-460.0,0.00020036,2]
[370053922,1751867442436,-549.32,0.00020036,2]
[370053923,1751867442445,-460.0,0.00020038,2]
[370053924,1751867442454,-460.0,0.00020038,2]
[370053925,1751867442463,-1422.55225651,0.00020107,2]
[370053926,1751867442472,-214.06929976,0.00020191,2]
[370053927,1751867442482,-160.0,0.00020191,2]
[370053928,1751867442491,-160.0,0.00020226,2]
[370053929,1751867442500,-160.0,0.00020226,2]
[370053930,1751867442509,-524.98484073,0.00020226,2]
[370053931,1751867442519,-160.0,0.00020226,2]
[370053932,1751867442528,-160.0,0.00020226,2]
[370053933,1751867442537,-160.0,0.00020226,2]
[370053934,1751867442547,-160.0,0.00020226,2]
[370053935,1751867442556,-215.21338352,0.00020227,2]
[370053936,1751867442566,-837.79946008,0.00020227,2]
[370053937,1751867442576,-230.48668418,0.00020227,2]
[370053938,1751867442586,-160.0,0.00020227,2]
[370053939,1751867442596,-848.27993403,0.00020227,2]
[370053940,1751867442606,-460.0,0.00020309,2]
[370053941,1751867442615,-229.66,0.00020309,2]
[370053942,1751867442625,-376.27,0.0002031,2]
[370053943,1751867442635,-549.32,0.0002031,2]
[370053944,1751867442645,-460.0,0.00020312,2]
[370053945,1751867442655,-460.0,0.00020312,2]
[370053946,1751867442665,-1422.55225651,0.00020348,3]
[370053947,1751867442675,-497.85899759,0.00020583,2]
[370053948,1751867442685,-549.32,0.00020584,2]
[370053949,1751867442696,-460.0,0.00020586,2]
[370053950,1751867442705,-460.0,0.00020586,2]
[370053951,1751867442714,-1422.55225651,0.0002059,3]
[370053952,1751867442728,-563.6,0.000206,2]
[370053953,1751867442738,-3460.68,0.00020773,10]
[370053954,1751867442747,-211.459,0.00020783,2]
[370053955,1751867442757,-1422.55225651,0.00020831,4]
[370053956,1751867442766,-549.32,0.00020858,2]
[370053957,1751867442776,-460.0,0.0002086,2]
[370053958,1751867442786,-479.39974642,0.0002086,2]
[370053959,1751867442795,-1610.14419389,0.00020876,2]
[370053960,1751867442805,-5034.69,0.00020927,10]
[370053961,1751867442814,-4195.58,0.00020927,10]
[370053962,1751867442824,-3496.31,0.00020927,10]
[370053963,1751867442833,-587.0,0.00020937,2]
[370053964,1751867442843,-1422.55225651,0.00021072,4]
[370053965,1751867442853,-549.32,0.00021132,2]
[370053966,1751867442863,-460.0,0.00021134,2]
[370053967,1751867442872,-6041.63,0.00021304,10]
[370053968,1751867442883,-1422.55225651,0.00021314,5]
[370053969,1751867442892,-165.412141,0.00021404,2]
[370053970,1751867442902,-549.32,0.00021406,2]
[370053971,1751867442912,-460.0,0.00021408,2]
[370053972,1751867442922,-40428.44440618,0.00021455,2]
[370053973,1751867442931,-500.0,0.00021527,2]
[370053974,1751867442941,-264578.12953344,0.00021543,2]
[370053975,1751867442951,-1422.55225651,0.00021555,5]
[370053976,1751867442960,-9184.56862855,0.00021643,2]
[370053977,1751867442970,-150.0,0.00021651,2]
[370053978,1751867442979,-549.32,0.0002168,2]
[370053979,1751867442988,-460.0,0.00021682,2]
[370053980,1751867442998,-1422.55225651,0.00021797,6]
[370053981,1751867443007,-549.32,0.00021954,2]
[370053982,1751867443016,-249.58,0.00021956,2]
[370053983,1751867443025,-36049.16079695,0.00022,2]
[370053984,1751867443034,-133768.55,0.00022,2]
[370053985,1751867443044,-4000.61,0.00022,7]
[370053986,1751867443053,-52703.04,0.00022,7]
[370053987,1751867443062,-524.98484073,0.00022,7]
[370053988,1751867443072,-150.0,0.00022,2]
[370053989,1751867443083,-848.27993403,0.00022,7]
[370053990,1751867443093,-214.06929976,0.00022,7]
[370053991,1751867443104,-1422.55225651,0.00022038,6]
[370053992,1751867443113,-549.32,0.00022228,2]
[370053993,1751867443122,-1422.55225651,0.00022279,6]
[370053994,1751867443131,-549.32,0.00022502,2]
[370053995,1751867443140,-1422.55225651,0.00022521,7]
[370053996,1751867443149,-437.209313,0.00022603,2]
[370053997,1751867443158,-563.6,0.000227,7]
[370053998,1751867443167,-1610.14419389,0.00022717,2]
[370053999,1751867443177,-1422.55225651,0.00022762,7]
[370054000,1751867443186,-549.32,0.00022776,2]
[370054001,1751867443195,-300.75601727,0.00022802,2]
[370054002,1751867443205,-500.0,0.00022805,2]
[370054003,1751867443214,-500.62017214,0.00022805,2]
[370054004,1751867443223,-160.21940151,0.00022805,2]
[370054005,1751867443232,-500.0,0.00022805,2]
[370054006,1751867443241,-500.0,0.00022805,2]
[370054007,1751867443251,-600.0,0.00022805,2]
[370054008,1751867443260,-503.73528866,0.00022805,2]
[370054009,1751867443269,-500.0,0.00022805,2]
[370054010,1751867443279,-823.0,0.00022855,2]
[370054011,1751867443289,-151.0,0.000229,5]
[370054012,1751867443299,-160.0,0.00023,2]
[370054013,1751867443309,-330.67695274,0.00023,2]
[370054014,1751867443318,-1422.55225651,0.00023003,8]
[370054015,1751867443327,-549.32,0.0002305,2]
[370054017,1751867443337,-40428.44440618,0.00023128,2]
[370054018,1751867443346,-1422.55225651,0.00023245,8]
[370054019,1751867443356,-549.33400077,0.00023324,2]
[370054020,1751867443365,-1200.0,0.00023352,2]
[370054021,1751867443374,-501.43177517,0.00023352,2]
[370054022,1751867443384,-161.50260008,0.000234,4]
[370054023,1751867443394,-161.50260008,0.000234,4]
[370054024,1751867443403,-161.50260008,0.000234,4]
[370054025,1751867443413,-161.5,0.000234,4]
[370054026,1751867443422,-150.73576007,0.000234,4]
[370054027,1751867443432,-150.73576007,0.000234,4]
[370054028,1751867443441,-150.73576007,0.000234,4]
[370054029,1751867443451,-150.73576007,0.000234,4]
[370054030,1751867443461,-150.73576007,0.000234,4]
[370054031,1751867443471,-150.73576007,0.000234,4]
[370054032,1751867443482,-150.73576007,0.000234,4]
[370054033,1751867443494,-163.16488152,0.000234,4]
[370054034,1751867443504,-366.6942869,0.00023425,2]
[370054035,1751867443514,-366.6942869,0.00023425,2]
[370054036,1751867443525,-223.6670826,0.00023425,2]
[370054037,1751867443536,-1422.55225651,0.00023486,9]
[370054038,1751867443545,-392.95374725,0.00023499,2]
[370054039,1751867443555,-52703.04,0.000235,7]
[370054040,1751867443564,-524.98484073,0.000235,7]
[370054041,1751867443575,-848.27993403,0.000235,7]
[370054042,1751867443584,-500.0,0.00023573,2]
[370054043,1751867443593,-460.0,0.00023595,2]
[370054044,1751867443603,-460.0,0.00023595,2]
[370054045,1751867443612,-460.0,0.00023595,2]
[370054046,1751867443622,-460.0,0.00023595,2]
[370054047,1751867443631,-460.0,0.00023595,2]
[370054048,1751867443640,-460.89605378,0.00023595,2]
[370054049,1751867443650,-460.0,0.00023595,2]
[370054050,1751867443659,-460.0,0.00023595,2]
[370054051,1751867443669,-1000.0,0.00023595,2]
[370054052,1751867443679,-460.0,0.00023595,2]
[370054053,1751867443688,-460.0,0.00023595,2]
[370054054,1751867443698,-461.64094104,0.00023595,2]
[370054055,1751867443708,-463.11705964,0.00023595,2]
[370054056,1751867443717,-460.0,0.00023595,2]
[370054057,1751867443726,-461.11789058,0.00023595,2]
[370054058,1751867443736,-574.9021437,0.00023595,2]
[370054059,1751867443746,-461.15112865,0.00023595,2]
[370054060,1751867443755,-231.93789216,0.00023595,2]
[370054061,1751867443764,-461.24283364,0.00023595,2]
[370054062,1751867443774,-460.0,0.00023595,2]
[370054063,1751867443784,-460.0,0.00023595,2]
[370054064,1751867443793,-460.0,0.00023595,2]
[370054065,1751867443803,-462.46731527,0.00023595,2]
[370054066,1751867443813,-466.51877487,0.00023595,2]
[370054067,1751867443823,-460.0,0.00023595,2]
[370054068,1751867443832,-460.0,0.00023595,2]
[370054069,1751867443842,-460.0,0.00023595,2]
[370054071,1751867443851,-460.0,0.00023595,2]
[370054072,1751867443860,-460.0,0.00023595,2]
[370054074,1751867443870,-460.0,0.00023595,2]
[370054075,1751867443880,-460.9688849,0.00023595,2]
[370054076,1751867443890,-552.22262577,0.00023595,2]
[370054077,1751867443899,-151.0,0.00023596,2]
[370054079,1751867443909,-151.0,0.00023596,2]
[370054080,1751867443920,-207.4,0.00023596,2]
[370054081,1751867443929,-690.642,0.00023596,2]
[370054082,1751867443939,-500.0,0.00023596,2]
[370054083,1751867443948,-500.0,0.00023596,2]
[370054084,1751867443959,-151.0,0.00023596,2]
[370054085,1751867443969,-151.0,0.00023596,2]
[370054086,1751867443978,-500.0,0.00023596,2]
[370054087,1751867443988,-1500.0,0.00023596,2]
[370054088,1751867443997,-500.0,0.00023596,2]
[370054089,1751867444007,-1500.0,0.00023596,2]
[370054090,1751867444017,-500.0,0.00023596,2]
[370054091,1751867444026,-1500.0,0.00023596,2]
[370054092,1751867444036,-500.0,0.00023596,2]
[370054093,1751867444045,-1500.0,0.00023596,2]
[370054094,1751867444054,-500.0,0.00023596,2]
[370054095,1751867444064,-1500.0,0.00023596,2]
[370054096,1751867444073,-1500.0,0.00023596,2]
[370054097,1751867444083,-500.0,0.00023596,2]
[370054098,1751867444092,-1500.0,0.00023596,2]
[370054099,1751867444101,-500.0,0.00023596,2]
[370054100,1751867444111,-1500.0,0.00023596,2]
[370054101,1751867444120,-500.0,0.00023596,2]
[370054102,1751867444130,-1500.0,0.00023596,2]
[370054103,1751867444139,-500.0,0.00023596,2]
[370054104,1751867444148,-1500.0,0.00023596,2]
[370054105,1751867444157,-5000.0,0.00023596,2]
[370054106,1751867444167,-1500.0,0.00023596,2]
[370054107,1751867444178,-25000.0,0.00023596,2]
[370054108,1751867444188,-2386.17266523,0.00023596,2]
[370054109,1751867444198,-133768.55,0.000236,2]
[370054110,1751867444208,-4000.61,0.000236,7]
[370054111,1751867444218,-150.0,0.00023619,2]
[370054112,1751867444227,-716.195754,0.00023651,2]
[370054113,1751867444236,-767.98018654,0.00023706,2]
[370054114,1751867444348,-160.0,0.00023707,3]
[370054115,1751867444358,-150.73576007,0.00023712,4]
[370054116,1751867444368,-500.0,0.00023719,2]
[370054118,1751867444378,-1422.55225651,0.00023728,9]
[370054120,1751867444387,-466.87082677,0.00023869,2]
[370054121,1751867444397,-460.0,0.00023869,2]
[370054123,1751867444406,-1000.0,0.00023869,2]
[370054125,1751867444416,-461.8432639,0.00023869,2]
[370054126,1751867444425,-460.0,0.00023869,2]
[370054127,1751867444435,-460.0,0.00023869,2]
[370054128,1751867444444,-460.0,0.00023869,2]
[370054129,1751867444453,-460.0,0.00023869,2]
[370054130,1751867444462,-460.0,0.00023869,2]
[370054131,1751867444472,-1800.0,0.000239,2]
[370054132,1751867444481,-151.0,0.00023961,7]
[370054133,1751867444490,-1422.55225651,0.00023969,10]
[370054134,1751867444500,-837.79946008,0.00024,7]
[370054135,1751867444509,-230.48668418,0.00024,7]
[370054136,1751867444518,-160.0,0.00024,7]
[370054137,1751867444528,-215.21338352,0.00024,7]
[370054138,1751867444537,-160.0,0.00024,7]
[370054139,1751867444547,-501.71811265,0.00024121,2]
[370054140,1751867444556,-464.55376081,0.00024143,2]
[370054141,1751867444566,-460.0,0.00024143,2]
[370054142,1751867444575,-460.0,0.00024143,2]
[370054143,1751867444584,-460.0,0.00024143,2]
[370054144,1751867444595,-5000.0,0.00024144,2]
[370054145,1751867444605,-25000.0,0.00024144,2]
[370054146,1751867444614,-150.73576007,0.00024206,4]
[370054147,1751867444624,-1422.55225651,0.0002421,10]
[370054148,1751867444633,-563.6,0.000243,7]
[370054149,1751867444642,-151.0,0.00024312,7]
[370054150,1751867444653,-460.0,0.00024417,2]
[370054151,1751867444663,-460.0,0.00024417,2]
[370054152,1751867444674,-332.72511228,0.00024417,2]
[370054153,1751867444684,-2400.0,0.00024448,2]
[370054154,1751867444695,-1422.55225651,0.00024452,11]
[370054155,1751867444705,-168.0,0.00024452,2]
[370054156,1751867444715,-1610.14419389,0.00024557,2]
[370054157,1751867444724,-1983.580973,0.00024632,4]
[370054158,1751867444734,-76980.98637407,0.00024651,2]
[370054159,1751867444744,-300.0,0.00024657,4]
[370054160,1751867444755,-300.0,0.00024657,4]
[370054161,1751867444765,-300.0,0.00024657,4]
[370054162,1751867444775,-300.0,0.00024657,4]
[370054163,1751867444785,-300.0,0.00024657,4]
[370054164,1751867444795,-300.0,0.00024657,4]
[370054165,1751867444804,-327.85232221,0.00024657,4]
[370054166,1751867444814,-200.0,0.00024657,2]
[370054167,1751867444823,-210.00855503,0.00024657,2]
[370054168,1751867444832,-150.0,0.00024658,2]
[370054169,1751867444841,-380.0,0.00024658,2]
[370054170,1751867444851,-200.0,0.00024658,15]
[370054171,1751867444860,-500.0,0.00024658,2]
[370054172,1751867444869,-151.0,0.00024662,7]
[370054173,1751867444879,-460.0,0.00024691,2]
[370054174,1751867444890,-460.0,0.00024691,2]
[370054175,1751867444900,-5000.0,0.00024692,2]
[370054176,1751867444909,-25000.0,0.00024692,2]
[370054177,1751867444922,-1422.55225651,0.00024693,11]
[370054178,1751867444932,-52703.04,0.000247,7]
[370054179,1751867444941,-150.73,0.000247,4]
[370054180,1751867444950,-163.16,0.000247,4]
[370054181,1751867444960,-2200.0,0.00024765,2]
[370054182,1751867444969,-642.84221594,0.000248,2]
[370054183,1751867444979,-27003.506508,0.000248,2]
[370054184,1751867444988,-40428.44440618,0.000248,2]
[370054185,1751867444997,-642.8422159,0.0002485,2]
[370054186,1751867445006,-460.0,0.00024856,2]
[370054187,1751867445016,-168.0,0.00024868,2]
[370054188,1751867445026,-150.0,0.00024873,2]
[370054189,1751867445035,-150.0,0.00024873,2]
[370054190,1751867445044,-168.0,0.00024895,2]
[370054191,1751867445054,-269766.50594,0.00024899,4]
[370054192,1751867445063,-151.0,0.000249,7]
[370054193,1751867445072,-151.0,0.000249,7]
[370054194,1751867445081,-152.164207,0.000249,7]
[370054195,1751867445090,-185.53978,0.000249,7]
[370054196,1751867445099,-185.53978,0.000249,7]
[370054197,1751867445109,-133768.55,0.000249,2]
[370054198,1751867445118,-151.0,0.000249,7]
[370054199,1751867445127,-4000.61,0.000249,7]
[370054200,1751867445136,-151.412107,0.000249,7]
[370054201,1751867445145,-173.04275,0.000249,7]
[370054202,1751867445155,-151.0,0.000249,7]
[370054203,1751867445164,-173.04275,0.000249,7]
[370054204,1751867445173,-399.582741,0.000249,7]
[370054205,1751867445183,-151.0,0.000249,7]
[370054206,1751867445192,-399.582741,0.000249,7]
[370054207,1751867445201,-151.0,0.000249,7]
[370054208,1751867445210,-192.033028,0.000249,7]
[370054209,1751867445219,-192.033028,0.000249,7]
[370054210,1751867445229,-151.0,0.000249,7]
[370054211,1751867445238,-173.199327,0.000249,7]
[370054212,1751867445247,-151.0,0.000249,7]
[370054213,1751867445257,-151.0,0.000249,7]
[370054214,1751867445266,-151.0,0.000249,7]
[370054215,1751867445276,-151.0,0.000249,7]
[370054216,1751867445288,-151.0,0.000249,7]
[370054217,1751867445298,-151.0,0.000249,7]
[370054218,1751867445307,-151.0,0.000249,7]
[370054219,1751867445319,-766632.056984,0.000249,2]
[370054220,1751867445330,-152.647491,0.000249,7]
[370054221,1751867445339,-151.0,0.000249,7]
[370054222,1751867445349,-196.196642,0.000249,7]
[370054223,1751867445359,-380.486097,0.000249,7]
[370054224,1751867445368,-380.486097,0.000249,7]
[370054225,1751867445377,-151.0,0.000249,7]
[370054226,1751867445387,-151.0,0.000249,7]
[370054227,1751867445396,-568.96263155,0.000249,2]
[370054228,1751867445406,-2275.8505262,0.000249,2]
[370054229,1751867445415,-5115.54302027,0.000249,2]
[370054230,1751867445425,-151.0,0.000249,7]
[370054231,1751867445434,-151.0,0.000249,7]
[370054232,1751867445443,-151.0,0.000249,7]
[370054233,1751867445452,-151.0,0.000249,7]
[370054234,1751867445462,-151.0,0.000249,7]
[370054235,1751867445471,-151.0,0.000249,7]
[370054236,1751867445480,-642.8422159,0.00024901,2]
[370054237,1751867445489,-347.12457,0.00024924,2]
[370054238,1751867445498,-1422.55225651,0.00024934,12]
[370054239,1751867445507,-503.98954517,0.00024935,9]
[370054240,1751867445518,-967.0,0.00024943,2]
[370054241,1751867445529,-2153.0,0.00024943,2]
[370054242,1751867445538,-646.0,0.00024943,2]
[370054243,1751867445547,-151.924,0.00024943,2]
[370054244,1751867445557,-429.128,0.00024943,2]
[370054245,1751867445566,-1152.0,0.00024948,2]
[370054246,1751867445575,-642.8422159,0.00024951,2]
[370054247,1751867445584,-168.0,0.0002496,2]
[370054248,1751867445593,-215.0738,0.00024965,2]
[370054249,1751867445603,-460.0,0.00024965,2]
[370054250,1751867445612,-460.0,0.00024965,2]
[370054251,1751867445622,-37303.70134939,0.0002499,2]
[370054276,1751867449456,-8872.73685077,0.0002499,2]
[370054277,1751867449676,-679.66133885,0.0002499,2]
[370054278,1751867449689,-485.42257055,0.0002499,2]
[370054279,1751867449701,-541.29166109,0.0002499,2]
[370054280,1751867449713,-645.11851081,0.0002499,2]
[370054281,1751867449723,-2114.92093966,0.0002499,2]
[370054282,1751867449734,-2364.93270079,0.0002499,2]
[370054283,1751867449744,-157.0,0.0002499,3]
[370054284,1751867449754,-157.0,0.0002499,3]
[370054285,1751867449764,-157.13838285,0.0002499,3]
[370054286,1751867449773,-154.0,0.0002499,3]
[370054287,1751867449783,-154.0,0.0002499,3]
[370054288,1751867449794,-154.0,0.0002499,3]
[370054289,1751867449804,-100.8543384,0.0002499,3]
[370054290,1751867449854,-53.1456616,0.0002499,3]
[370054291,1751867449864,-154.0,0.0002499,3]
[370054292,1751867449873,-201.40044229,0.0002499,3]
[370054293,1751867449884,-154.0,0.0002499,3]
[370054294,1751867449894,-154.67956278,0.0002499,3]
[370054295,1751867449903,-154.0,0.0002499,3]
[370054296,1751867449913,-156.90230019,0.0002499,3]
[370054297,1751867449923,-318.0,0.0002499,3]
[370054298,1751867449932,-318.0,0.0002499,3]
[370054299,1751867449942,-318.0,0.0002499,3]
[370054300,1751867449951,-318.0,0.0002499,3]
[370054301,1751867449961,-277.85783841,0.0002499,3]
[370054302,1751867449971,-3000.0,0.00024996,2]
[370054303,1751867449980,-2000.0,0.00025,2]
[370054304,1751867449989,-2000.0,0.00025,2]
[370054305,1751867449999,-150.0,0.00025,7]
[370054306,1751867450009,-198.0,0.00025,7]
[370054307,1751867450018,-150.0,0.00025,7]
[370054308,1751867450027,-524.98484073,0.00025,10]
[370054309,1751867450037,-215.21338352,0.00025,10]
[370054310,1751867450046,-524.98484073,0.00025,10]
[370054311,1751867450056,-837.79946008,0.00025,10]
[370054312,1751867450065,-230.48668418,0.00025,10]
[370054313,1751867450075,-641.0,0.00025,2]
[370054314,1751867450084,-848.27993403,0.00025,10]
[370054315,1751867450093,-214.06929976,0.00025,10]
[370054316,1751867450103,-215.21338352,0.00025,10]
[370054317,1751867450112,-160.0,0.00025,10]
[370054318,1751867450121,-642.8422159,0.00025001,2]
[370054319,1751867450131,-151.0,0.00025013,7]
[370054320,1751867450140,-2534.78,0.0002502,4]
[370054321,1751867450150,-168.0,0.00025023,2]
[370054322,1751867450160,-168.0,0.00025026,2]
[370054323,1751867450170,-347.12457,0.00025039,2]
[370054324,1751867450179,-642.8422159,0.00025052,2]
[370054325,1751867450189,-2000.0,0.000251,2]
[370054326,1751867450198,-2000.0,0.000251,2]
[370054327,1751867450207,-642.8422159,0.00025102,2]
[370054328,1751867450216,-2534.78,0.0002512,7]
[370054329,1751867450226,-500.0,0.00025124,2]
[370054330,1751867450235,-151.67620471,0.00025124,2]
[370054331,1751867450244,-151.0,0.00025124,2]
[370054332,1751867450255,-500.0,0.00025124,2]
[370054333,1751867450264,-151.0,0.00025124,2]
[370054334,1751867450274,-151.0,0.00025124,2]
[370054335,1751867450291,-151.0,0.00025124,2]
[370054336,1751867450300,-151.0,0.00025124,2]
[370054337,1751867450406,-500.0,0.00025124,2]
[370054338,1751867450416,-151.53734073,0.00025124,2]
[370054339,1751867450426,-200.31382204,0.00025124,2]
[370054340,1751867450435,-151.0,0.00025124,2]
[370054341,1751867450445,-151.0,0.00025124,2]
[370054342,1751867450454,-151.0,0.00025124,2]
[370054343,1751867450463,-72.3342185,0.0002513,7]
[370054344,1751867450524,460.0,0.00017023,2]
[370054345,1751867450550,460.0,0.00017024,2]
[370054346,1751867450727,460.0,0.00017022,2]
[370054347,1751867450752,-460.0,0.00017298,2]
[370054348,1751867450763,-460.0,0.00017572,2]
[370054349,1751867450773,-460.0,0.00017846,2]
[370054350,1751867450783,-460.0,0.0001812,2]
[370054351,1751867450793,-460.0,0.00018394,2]
[370054352,1751867450803,-460.0,0.00018668,2]
[370054353,1751867450812,-460.0,0.00018942,2]
[370054354,1751867450822,-225.02,0.00019216,2]
[370054355,1751867450831,-150.0,0.00024943,2]
[370054356,1751867450840,-95.6657815,0.0002513,7]
[370054357,1751867450850,-168.71,0.00025135,2]
[370054358,1751867450859,-168.0,0.00025151,2]
[370054359,1751867450868,-500.0,0.00025151,2]
[370054360,1751867450878,-151.0,0.00025151,2]
[370054361,1751867450887,-500.0,0.00025151,2]
[370054362,1751867450897,-151.0,0.00025151,2]
[370054363,1751867450906,-151.0,0.00025151,2]
[370054364,1751867450915,-235.78301923,0.00025151,2]
[370054365,1751867450926,-500.0,0.00025151,2]
[370054366,1751867450935,-151.0,0.00025151,2]
[370054367,1751867450945,-151.0,0.00025151,2]
[370054368,1751867450954,-642.8422159,0.00025152,2]
[370054369,1751867450965,-347.12457,0.00025153,2]
[370054370,1751867450975,-168.0,0.00025164,2]
[370054371,1751867450986,-1422.55225651,0.00025176,12]
[370054372,1751867450995,-500.0,0.00025179,2]
[370054373,1751867451004,-198.0,0.00025179,2]
[370054374,1751867451014,-500.0,0.00025179,2]
[370054375,1751867451023,-151.0,0.00025179,2]
[370054376,1751867451032,-198.0,0.00025179,2]
[370054377,1751867451041,-494.53087109,0.00025179,2]
[370054378,1751867451051,-198.71580233,0.00025179,2]
[370054379,1751867451062,-247.54728498,0.00025179,2]
[370054380,1751867451072,-160.0,0.00025182,4]
[370054381,1751867451081,-161.86720396,0.00025182,5]
[370054382,1751867451091,-642.8422159,0.00025203,2]
[370054383,1751867451100,-511.5954898,0.00025206,2]
[370054384,1751867451110,-381.51572691,0.00025206,2]
[370054385,1751867451119,-2534.78,0.0002522,7]
[370054386,1751867451129,-460.0,0.00025239,2]
[370054387,1751867451139,-5000.0,0.0002524,2]